Cogmind - Beta 16 @@@ ROGUE MODE // 2026.01.01 @ 06:45:46 Player: Zaros426 Result: Destroyed by G-50 Soldier with Heavy Laser Performance ------------- Evolutions (4) 2000 Regions Visited (7) 1400 Robots Destroyed (86) 430 Value Destroyed (2073) 2073 Prototype IDs (29) 580 Alien Tech Used (0) 0 Bonus (931) 931 TOTAL SCORE: 7414 Bonus ------- High Alert Combat Kills 8 Follower Combat Kills 123 Registered with UFD 300 Met Optimus in HQ 500 Cogmind --------- Core Integrity 0/850 Matter 277/300 Energy 500/500 System Corruption 1% Temperature Cool (9) Movement Core (100) Ox1 Location -6/Extension Parts ------- > --- POWER (1) -------- (None) > --- PROPULSION (4) --- (None) > --- UTILITY (7) ------ Improved Energy Well Advanced Terrain Scan Processor Improved Hacking Suite > --- WEAPON (3) ------- (None) > --- INVENTORY (5) ---- Experimental Coolant Injector High-capacity Storage Unit Experimental Matter Compressor (500) Power Bank Peak State ------------ > --- POWER ------------ Hybrid Fission Core > --- PROPULSION ------- Spiked Treads Spiked Treads Compact Wheel Armored Wheel > --- UTILITY ---------- Experimental Coolant Injector Huge Storage Unit Enhanced Optical Array Advanced Terrain Scan Processor Seismic Detector Centrium Light Armor Plating Centrium Light Armor Plating > --- WEAPON ----------- Heavy Machine Gun Heavy Machine Gun Enhanced Coil Gun > --- INVENTORY -------- Fission Core Hybrid Fission Core Hybrid Fission Core Medium Treads Armored Leg Advanced Heat Sink Large Storage Unit High-capacity Storage Unit Improved Energy Well Improved Energy Well Experimental Matter Compressor Advanced Terrain Scanner ECM Suite ECM Suite Hardened Heavy Armor Plating Advanced Remote Shield Power Bank Heavy Plasma Cannon CPS Tube CPS Tube Vortex Trap Vortex Trap Vortex Trap PL-3XN's Ring of Power [Rating: 77] Favorites ----------- Power Makeshift Power Source Engine Makeshift Power Source Power Core Fission Core Propulsion Spiked Treads Treads Spiked Treads Leg Armored Leg Wheel Compact Wheel Utility Large Storage Unit Device Seismic Detector Storage Large Storage Unit Processor Enhanced Optical Array Hackware Improved Hacking Suite Protection Scrap Shield Weapon Subdweller Machine Gun Energy Gun EM Pulse Gun Energy Cannon Subdweller Beam Cannon Ballistic Gun Subdweller Machine Gun Ballistic Cannon Battle Cannon Launcher Rocket Launcher Special Weapon CPS Tube Build | -11 -10 -10 -10 -9 -9 -6 -6 ------- Run | Yrd Mat Min Sub Rec Scr Fac Ext Slots Evolved 8 | . . . . . . 8 . Power . | . . . . . . . . Propulsion 2 | . . . . . . 2 . Utility 5 | . . . . . . 5 . Weapon 1 | . . . . . . 1 . Parts Attached 87 | 8 10 5 11 . 3 46 4 Power 6 | 1 1 . 1 . . 3 . Engine 3 | 1 1 . 1 . . . . Core 3 | . . . . . . 3 . Reactor . | . . . . . . . . Propulsion 17 | 2 . 2 2 . . 11 . Treads 7 | 2 . 1 2 . . 2 . Leg 3 | . . . . . . 3 . Wheel 7 | . . 1 . . . 6 . Hover . | . . . . . . . . Flight . | . . . . . . . . Utility 37 | 3 5 1 2 . 2 23 1 Device 14 | 2 . . . . 1 11 . Storage 10 | 1 3 . 1 . 1 3 1 Processor 4 | . 1 . . . . 3 . Hackware 2 | . . . . . . 2 . Protection 7 | . 1 1 1 . . 4 . Artifact . | . . . . . . . . Weapon 27 | 2 4 2 6 . 1 9 3 Energy Gun 3 | 1 . . . . . 1 1 Energy Cannon 7 | . 2 1 2 . . 1 1 Ballistic Gun 10 | 1 . . 3 . . 5 1 Ballistic Cannon 2 | . 1 . 1 . . . . Launcher 3 | . 1 1 . . . 1 . Special Weapon 2 | . . . . . 1 1 . Impact Weapon . | . . . . . . . . Slashing Weapon . | . . . . . . . . Piercing Weapon . | . . . . . . . . Special Melee Weapon . | . . . . . . . . Unidentified Prototypes 11 | . . . . . 1 10 . Parts Lost 28 | . 1 4 . . . 15 8 Power 1 | . . . . . . 1 . Propulsion 11 | . . 2 . . . 7 2 Utility 6 | . . . . . . 3 3 Weapon 10 | . 1 2 . . . 4 3 Highest Loss Streak 9 | . 1 2 . . . 9 8 To Critical Strikes 1 | . . . . . . . 1 Average Backups 10 | 1 13 11 6 5 8 17 4 Power . | . 1 1 . . . 3 . Propulsion . | . . . . . . 1 . Utility 5 | . 5 4 3 4 5 8 4 Weapon 2 | . 4 4 1 1 1 1 . Tool/Special . | . . . . . . . . Unused Backups 54 | 3 5 . 7 . 17 21 1 Power 3 | . . . . . 1 2 . Propulsion 9 | . . . 2 . 4 3 . Utility 24 | 2 4 . 1 . 6 10 1 Weapon 12 | 1 . . 3 . 4 4 . Tool/Special 6 | . 1 . 1 . 2 2 . Average Slot Usage (%) 88 | . 100 97 88 85 82 90 35 Engine 9 | . 14 14 14 14 10 . . Core 1 | . . . . . . 5 . Treads 24 | . 28 23 26 28 28 12 . Wheel 2 | . . 2 1 . . 10 . Device 4 | . 4 . 2 . 1 13 7 Storage 8 | . 14 14 3 . 8 7 3 Processor 2 | . 3 . . . . 12 9 Protection 7 | . 5 14 11 14 5 6 . Energy Cannon 9 | . 10 12 6 14 13 . . Ballistic Gun 12 | . 5 . 17 14 13 17 . Launcher 2 | . 6 14 1 . . . . Peak Build Rating 77 | 9 12 11 17 17 23 77 44 Average Rating 21 | 6 10 10 15 17 15 57 26 On Entrance 13 | . 7 11 10 17 17 16 33 Avg Prop Armor Cover (%) 14 | . . 8 9 . . 14 34 Naked Turns . | . . . . . . . . Heaviest Build 133 | 15 60 40 53 34 56 133 16 Greatest Support 68 | 40 40 40 40 40 40 68 36 Greatest Overweight (x) 10 | . 1 2 2 . 1 10 5 Average Overweight (x) . | . . . . . . 2 . Largest Inventory Capacity 25 | 8 20 15 25 5 20 25 5 Average Capacity 13 | 7 15 15 7 5 11 21 5 Most Carried 25 | 4 17 14 17 5 15 25 5 Average Carried 11 | 1 13 11 6 5 9 20 4 Final Capacity 15 | 8 15 15 5 5 15 5 5 Final Carried 15 | 3 14 9 5 5 15 5 4 Class Distribution -------------------- 41% | Mutant 28% | Subdweller-Mutant 12% | Derelict-Mutant 10% | Skirmisher 4% | Tank Dominant Class ---------------- Mutant | -10/Materials Mutant | -10/Mines Subdweller-Mutant | -10/Subcaves Subdweller-Mutant | -9/Recycling Subdweller-Mutant | -9/Scraptown Skirmisher | -6/Factory Mutant | -6/Extension Resources | -11 -10 -10 -10 -9 -9 -6 -6 ----------- Run | Yrd Mat Min Sub Rec Scr Fac Ext Matter Collected 3781 | 355 343 445 273 . 126 2182 57 Remotely . | . . . . . . . . Salvage Created 3054 | 289 731 158 177 . . 1642 57 Parts 210 | 23 84 3 19 . . 78 3 Haulers Intercepted 5 | . 2 . . . . 3 . Recyclers Shooed 6 | . 5 . . . . 1 . Parts Field Recycled . | . . . . . . . . Retrieved Matter . | . . . . . . . . Parts Self-Destructed 11 | . . . 11 . . . . Prevented . | . . . . . . . . Parts Restored . | . . . . . . . . Kills | -11 -10 -10 -10 -9 -9 -6 -6 ------- Run | Yrd Mat Min Sub Rec Scr Fac Ext Combat Hostiles Destroyed 63 | . 20 20 6 . . 15 2 Guns 22 | . 3 . 5 . . 13 1 Cannons 9 | . 4 2 1 . . 1 1 AOE 32 | . 13 18 . . . 1 . Classes Destroyed 15 | 3 6 2 1 . . 3 . Worker 8 | 2 3 . . . . 3 . Builder 5 | . 3 1 . . . 1 . Tunneler 11 | 8 1 . . . . 2 . Hauler 5 | . 2 . . . . 3 . Recycler 6 | 1 1 . . . . 4 . Operator 1 | . 1 . . . . . . Watcher 4 | . 3 . . . . 1 . Swarmer 17 | . 12 . 2 . . 1 2 Grunt 12 | . 8 2 . . . 2 . Sentry 3 | . . . . . . 3 . Demolisher 1 | . . 1 . . . . . Hunter 4 | . . . . . . 4 . Programmer 5 | . . . . . . 5 . Subdweller 4 | . . . 4 . . . . Assembled 17 | . . 17 . . . . . Best Kill Streak 6 | 5 6 4 2 . . 4 2 Combat Bots Only 4 | . 3 4 2 . . 2 2 Max Kills in Single Turn 3 | 1 3 2 1 . . 2 1 Gunslinging . | . . . . . . . . Exploded 3 | . 3 2 . . . 1 . Melee . | . . . . . . . . Uniques/NPCs Destroyed . | . . . . . . . . Combat | -11 -10 -10 -10 -9 -9 -6 -6 -------- Run | Yrd Mat Min Sub Rec Scr Fac Ext Hostile Shots Fired 620 | . 54 34 13 . . 419 100 Missed 203 | . 15 14 2 . . 142 30 Hits 417 | . 39 20 11 . . 277 70 Melee 5 | . . 5 . . . . . Projectile 412 | . 39 15 11 . . 277 70 AOE 7 | . . 7 . . . . . Critical Strikes 7 | . . . . . . 5 2 Damage Taken 5752 | . 379 860 151 . . 3314 1048 Core 1102 | . 78 91 74 . . 446 413 Absorbed by Shields 361 | . . . . . . 361 . Core Remaining (%) 51 | 100 . . . . 2 . . Volleys Fired 257 | 25 53 41 37 10 . 75 16 Largest 3 | 2 2 2 2 1 . 3 1 Hottest 112 | 60 112 112 110 80 . 90 90 Shots Fired 489 | 36 93 51 68 10 . 215 16 Gun 353 | 36 50 . 45 . . 212 10 Cannon 86 | . 32 12 23 10 . 3 6 Launcher 50 | . 11 39 . . . . . Special . | . . . . . . . . Kinetic 336 | 25 40 . 49 . . 212 10 Thermal 34 | . . . 15 10 . 3 6 Explosive 50 | . 11 39 . . . . . Electromagnetic 69 | 11 42 12 4 . . . . Robot Hit Streak 15 | 13 15 6 6 . . 10 5 Robot Miss Streak 5 | 3 2 2 3 . . 5 3 Penetration Max 1 | . . . . . . 1 . Secondary Targets 4 | . 1 . . . . 3 . Max Gunslinging Chain 1 | . 1 . . . . 1 . Shots Hit Robots 245 | 25 57 16 15 . . 123 9 Core Hits 160 | 11 44 42 11 . . 49 3 Critical Kills 1 | . . . . . . 1 . Critical Parts Destroyed 1 | . . . . . . 1 . Critical Strikes 6 | 1 1 . 1 . . 3 . Destroy 3 | . . . . . . 3 . Blast 1 | . . . 1 . . . . Corrupt 2 | 1 1 . . . . . . Melee Attacks . | . . . . . . . . Impact . | . . . . . . . . Slashing . | . . . . . . . . Piercing . | . . . . . . . . Sneak Attacks . | . . . . . . . . Combat Hostiles . | . . . . . . . . Follow-up Attacks . | . . . . . . . . Damage Inflicted 7291 | 303 1768 1396 303 . . 3255 266 Guns 4125 | 303 416 . 201 . . 3113 92 Cannons 979 | . 502 173 102 . . 41 161 Explosions 2173 | . 850 1223 . . . 100 . Melee . | . . . . . . . . Ramming 14 | . . . . . . 1 13 Kinetic 3937 | 166 330 . 236 . . 3113 92 Thermal 457 | . 127 . 28 . . 141 161 Explosive 1946 | . 723 1223 . . . . . Electromagnetic 937 | 137 588 173 39 . . . . Impact . | . . . . . . . . Slashing . | . . . . . . . . Piercing . | . . . . . . . . Highest Corruption 2 | . . . . . . 2 1 Average Corruption 1 | . . . . . . 1 1 Corruption Purged 2 | . . . . . . 2 . Corruption Blocked . | . . . . . . . . Effects 10 | . . . . . . 9 1 Message Errors 3 | . . . . . . 2 1 Matter Fused 2 | . . . . . . 2 . Energy Discharges 4 | . . . . . . 4 . Parts Rejected 1 | . . . . . . 1 . Overload Shots . | . . . . . . . . Overflow Damage 187 | . 19 160 . . . . 8 Projectiles 8 | . . . . . . . 8 Explosions 179 | . 19 160 . . . . . Melee . | . . . . . . . . Knockbacks 2 | . . . 2 . . . . Impact . | . . . . . . . . Kinetic 2 | . . . 2 . . . . Secondary . | . . . . . . . . Self-Inflicted Damage 391 | . 11 290 . . . 85 5 Shots 15 | . 1 13 . . . 1 . Rammed 4 | . . . . . . 1 3 Targets Rammed 4 | . . . . . . 1 3 Kicked . | . . . . . . . . Crushed . | . . . . . . . . Highest Temperature 296 | . 165 296 35 200 . 279 80 Average Temperature 59 | . 45 110 6 78 . 58 36 Received Heat Transfer 708 | . 114 36 6 . . 543 9 Effects 2 | . . 1 . 1 . . . Energy Bleed 2 | . . 1 . 1 . . . Siege Activations . | . . . . . . . . Martial Activations . | . . . . . . . . Shielding Activations . | . . . . . . . . Robots Disrupted . | . . . . . . . . Combat Hostiles . | . . . . . . . . Robots Corrupted . | . . . . . . . . Combat Hostiles . | . . . . . . . . Parts Fried . | . . . . . . . . Impact Corruptions . | . . . . . . . . Robots Melted . | . . . . . . . . Combat Hostiles . | . . . . . . . . Parts Melted . | . . . . . . . . Heat Transferred 487 | . 100 . 37 . . 100 250 Parts Sabotaged . | . . . . . . . . Parts Stolen . | . . . . . . . . Parts Stripped . | . . . . . . . . Power Chain Reactions 4 | . 4 . . . . . . Alert | -11 -10 -10 -10 -9 -9 -6 -6 ------- Run | Yrd Mat Min Sub Rec Scr Fac Ext Maximum Alert Level 2 | . 2 . . . . 1 . Low Security (%) 81 | 100 60 100 . 100 . 81 100 Level 1 16 | . 34 . . . . 18 . Level 2 1 | . 4 . . . . . . Level 3 . | . . . . . . . . Level 4 . | . . . . . . . . Level 5 . | . . . . . . . . High Security . | . . . . . . . . Max Security . | . . . . . . . . Peak Influence 413 | 10 413 192 . 51 . 388 187 Initial 187 | . . 154 . 49 . . 187 Average 100 | 1 156 53 . 19 . 106 151 Influence Increases 2384 | 55 817 277 115 57 . 982 81 Destroy 0b10 Robot/C 920 | . 400 60 40 . . 380 40 Destroy 0b10 Robot/NC 205 | 55 70 5 . . . 75 . Destroy Leader 250 | . 80 10 . . . 150 10 Allied During Kill 16 | . . . . . . 16 . Trap Triggered on 0b10 10 | . . . . . . 10 . Successful Hack 58 | . 14 . . 18 . 26 . Select Force Hacks 90 | . 60 . . 30 . . . Disable Machine 240 | . 90 30 . . . 120 . Destroy Structure 355 | . 88 172 . 9 . 85 1 Partial Spotted 30 | . . . . . . 30 . Lose Combat Pursuer 210 | . 15 . 75 . . 90 30 Influence Decreases 2276 | 55 420 669 17 160 . 598 357 Entered New Map 497 | . . 243 3 54 . . 197 Time Decay 1471 | 55 410 398 14 106 . 428 60 Lost Part 268 | . 10 28 . . . 150 80 Lost Ally 40 | . . . . . . 20 20 Squads Dispatched 18 | . 4 . . . . 14 . Investigation 8 | . 3 . . . . 5 . Extermination 4 | . . . . . . 4 . Reinforcement 5 | . 1 . . . . 4 . Assault . | . . . . . . . . Garrison 1 | . . . . . . 1 . Intercept . | . . . . . . . . Searches Triggered . | . . . . . . . . Construction Impeded 1 | . . . . . . 1 . Haulers Reinforced . | . . . . . . . . Active Scanning Responses . | . . . . . . . . Cargo Convoy Interrupts 1 | . . . . . . 1 . Stealth | -11 -10 -10 -10 -9 -9 -6 -6 --------- Run | Yrd Mat Min Sub Rec Scr Fac Ext Distress Signals 2 | . 1 . . . . 1 . Communications Jammed . | . . . . . . . . Distress Signals . | . . . . . . . . Times Spotted 95 | . 20 22 13 . . 32 8 Peak Tracking Total 8 | . 4 8 3 . . 6 4 Tactical Retreats 15 | . 1 2 5 . . 5 2 Traps | -11 -10 -10 -10 -9 -9 -6 -6 ------- Run | Yrd Mat Min Sub Rec Scr Fac Ext Traps Triggered 3 | . . . . . . 3 . Indirectly . | . . . . . . . . Trap Hack Attempts . | . . . . . . . . Triggered . | . . . . . . . . Disarmed . | . . . . . . . . Reprogrammed . | . . . . . . . . Reused 1 | . . . . . . 1 . Traps Extracted . | . . . . . . . . Installed 1 | . . . . . . 1 . Triggered 1 | . . . . . . 1 . Most Traps Carried 3 | . . . 1 . 3 3 . Machines | -11 -10 -10 -10 -9 -9 -6 -6 ---------- Run | Yrd Mat Min Sub Rec Scr Fac Ext Machines Disabled 18 | . 6 2 2 . . 8 . Max in Single Turn 2 | . 2 1 1 . . 2 . Machines Repaired . | . . . . . . . . Machines Dismantled . | . . . . . . . . Machines Sabotaged . | . . . . . . . . Overloaded Fab Kills . | . . . . . . . . Hacking | -11 -10 -10 -10 -9 -9 -6 -6 --------- Run | Yrd Mat Min Sub Rec Scr Fac Ext Machines Accessed 39 | . 9 . 1 5 11 12 1 Terminals 16 | . 7 . . 2 . 6 1 Fabricators . | . . . . . . . . Repair Stations . | . . . . . . . . Recycling Units 8 | . 2 . . 1 . 5 . Scanalyzers . | . . . . . . . . Garrison Access 1 | . . . . . . 1 . Total Hacks 146 | . 22 . 1 34 64 24 1 Successful 112 | . 8 . 1 30 64 8 1 Failed 34 | . 14 . . 4 . 16 . Catastrophic 5 | . . . . 1 . 4 . Database Lockouts . | . . . . . . . . Manual 35 | . 21 . . 3 . 11 . Terminals 40 | . 19 . . 8 . 12 1 Fabricators . | . . . . . . . . Repair Stations . | . . . . . . . . Recycling Units 13 | . 3 . . 1 . 9 . Scanalyzers . | . . . . . . . . Garrison Access 3 | . . . . . . 3 . Terminal Hacks 99 | . 2 . 1 27 64 4 1 Record 87 | . . . . 24 63 . . Robot Analysis 1 | . 1 . . . . . . Open Door 1 | . . . . . . . 1 Locate Traps 2 | . . . . . . 2 . Surveillance Status 1 | . . . . 1 . . . Patrol Status 1 | . . . . 1 . . . Recall Extermination 1 | . . . . . . 1 . Hauler Manifests 2 | . 1 . . . . 1 . Proto ID Catalog 2 | . . . 1 . 1 . . Release Object 1 | . . . . 1 . . . Fabricator Hacks . | . . . . . . . . Repair Station Hacks . | . . . . . . . . Recycling Unit Hacks . | . . . . . . . . Scanalyzer . | . . . . . . . . Garrison Access Hacks . | . . . . . . . . Unauthorized Hacks 13 | . 6 . . 3 . 4 . Terminals 6 | . 4 . . 2 . . . Skim 6 | . 4 . . 2 . . . Fabricators . | . . . . . . . . Repair Stations . | . . . . . . . . Recycling Units 7 | . 2 . . 1 . 4 . Tunnel 3 | . 2 . . 1 . . . Fedlink 4 | . . . . . . 4 . Scanalyzers . | . . . . . . . . Garrison Access . | . . . . . . . . Data Cores Recovered . | . . . . . . . . Used . | . . . . . . . . Hacking Detections 19 | . 7 . . 2 . 10 . Full Trace Events 2 | . 1 . . . . 1 . Feedback Events 1 | . . . . . . 1 . Corruption 1 | . . . . . . 1 . Feedback Blocked . | . . . . . . . . Robot Schematics Acquired . | . . . . . . . . Robots Built . | . . . . . . . . Authchips . | . . . . . . . . Time . | . . . . . . . . Total Robot Build Rating . | . . . . . . . . Part Schematics Acquired . | . . . . . . . . Parts Built . | . . . . . . . . Authchips . | . . . . . . . . Time . | . . . . . . . . Total Part Build Rating . | . . . . . . . . Part Studies Acquired . | . . . . . . . . Parts Repaired . | . . . . . . . . Time . | . . . . . . . . Parts Recycled . | . . . . . . . . Recycled Matter . | . . . . . . . . Retrieved Matter . | . . . . . . . . Retrieved Components . | . . . . . . . . Parts Scanalyzed . | . . . . . . . . Part Schematics Acquired . | . . . . . . . . Parts Damaged . | . . . . . . . . Bothacking | -11 -10 -10 -10 -9 -9 -6 -6 ------------ Run | Yrd Mat Min Sub Rec Scr Fac Ext Used RIF Installer . | . . . . . . . . Robots Hacked . | . . . . . . . . Non-combat . | . . . . . . . . Combat . | . . . . . . . . Robot Hacks Applied . | . . . . . . . . Relay Couplers Released . | . . . . . . . . Fabnet Peak Effective % . | . . . . . . . . Robots Rewired . | . . . . . . . . Allies Hacked . | . . . . . . . . Hacks Repelled . | . . . . . . . . Allies | -11 -10 -10 -10 -9 -9 -6 -6 -------- Run | Yrd Mat Min Sub Rec Scr Fac Ext Total Allies 2 | . . . . . 1 . 1 Largest Group 1 | . . . . . 1 1 1 Highest-Rated Group 59 | . . . . . 59 59 31 Highest-Rated Ally 59 | . . . . . 59 59 31 Total Orders 1 | . . . . . 1 . . STAY 1 | . . . . . 1 . . Ally Attacks 27 | . . . . . . 25 2 Total Damage 680 | . . . . . . 659 21 Kills 5 | . . . . . . 5 . Allies Corrupted . | . . . . . . . . Allies Melted . | . . . . . . . . Intel | -11 -10 -10 -10 -9 -9 -6 -6 ------- Run | Yrd Mat Min Sub Rec Scr Fac Ext Active Infowar (turns) 3187 | 134 534 . 379 . . 2067 73 Optics 2102 | . . . . . . 2067 35 Terrain 1078 | 98 . . . . . 921 59 Seismic 2325 | 36 534 . 379 . . 1306 70 Robot Analysis Total 1 | . 1 . . . . . . Derelict Logs Recovered 5 | . . 1 1 . 3 . . Drone Launches . | . . . . . . . . Drone Recoveries . | . . . . . . . . Exploration | -11 -10 -10 -10 -9 -9 -6 -6 ------------- Run | Yrd Mat Min Sub Rec Scr Fac Ext Turns Passed 11734 | 276 1572 1198 1855 320 4280 2101 132 Spaces Moved 6695 | 124 745 693 1030 188 2536 1262 117 Core 313 | 2 . . . . . 196 115 Treads 5027 | 122 745 508 909 188 2536 19 . Legs 2 | . . . . . . . 2 Wheels 1353 | . . 185 121 . . 1047 . Hover . | . . . . . . . . Flight . | . . . . . . . . Fastest Speed 50 | 50 160 130 115 160 160 50 50 Average Speed 155 | 158 178 157 160 160 162 126 74 Slowest Speed 300 | 160 240 240 250 160 260 260 300 Overloaded Moves . | . . . . . . . . Propulsion Burnouts . | . . . . . . . . Robots Hopped . | . . . . . . . . Potential Cave-ins . | . . . . . . . . Cave-ins Triggered . | . . . . . . . . Exploration Rate (%) 55 | 5 97 99 48 37 93 39 28 Regions Visited 7 Branch Regions 5 Pre-discovered Areas 7 | . 2 1 . 1 2 1 . Known Exits Taken 1 | . . . 1 . . . . Unknown Exits Taken 6 | 1 1 1 . 1 1 1 . Scrap Searched 16 | . . 3 9 . 4 . . Spaces Dug 112 | . 28 67 7 8 . 2 . Terrain Destroyed 462 | . 94 252 8 10 . 97 1 Melee . | . . . . . . . . Projectile 52 | . . . 8 10 . 33 1 AOE 410 | . 94 252 . . . 64 . Terrain Rammed . | . . . . . . . . Walls Destroyed . | . . . . . . . . Machines Disabled . | . . . . . . . . Actions | -11 -10 -10 -10 -9 -9 -6 -6 --------- Run | Yrd Mat Min Sub Rec Scr Fac Ext Total 7642 | 165 891 751 1168 197 2704 1620 146 Wait 301 | . 48 9 48 . 87 104 5 Move 6688 | 123 744 692 1029 187 2535 1261 117 Hop . | . . . . . . . . Pick Up 118 | 6 19 . 15 . 42 36 . Fast Attach 51 | 7 2 1 3 . 2 32 4 Attach 30 | . 2 4 4 . 4 16 . Detach 7 | . . . . . 1 6 . Swap 47 | 1 12 2 6 . . 26 . Drop 136 | 3 11 2 24 . 33 62 1 Fire 257 | 25 53 41 37 10 . 75 16 Melee . | . . . . . . . . Ram 3 | . . . . . . . 3 Kick . | . . . . . . . . Crush 1 | . . . . . . 1 . Escape Stasis . | . . . . . . . . Rewire . | . . . . . . . . Trap 1 | . . . . . . 1 . Miscellaneous 2 | . . . 2 . . . . Route ------- -11/Scrapyard -10/Materials (discovered 6 exits: [*Mat x3] / [*Min x2] / *Sub) -10/Mines (discovered 4 exits: [*Mat x2] / [*Exi] / *Sub) -10/Subcaves -9/Recycling -9/Scraptown (discovered 2 exits: *Fac x2) -6/Factory (discovered 3 exits: *Low / *Ext x2) -6/Extension History --------- Turn | Location | Event 10 | -11/Scrapyard | Discovered new exit (range 15) 277 | -11/Scrapyard | Entered Materials 305 | -10/Materials | Build established: Mutant 614 | -10/Materials | Discovered new exit (range 12) 929 | -10/Materials | Discovered new exit (range 10) 1054 | -10/Materials | Discovered new exit (range 16) 1125 | -10/Materials | Discovered new exit (range 7) 1321 | -10/Materials | Discovered new exit (range 10) 1408 | -10/Materials | Discovered new exit (range 14) 1849 | -10/Materials | Entered Mines 1853 | -10/Mines | Learned location of Zion (-7) 1937 | -10/Mines | Found a Scrap Suit stashed away for nefarious purposes 1965 | -10/Mines | Discovered new exit (range 10) 2016 | -10/Mines | Assembled infested the area 2043 | -10/Mines | Core integrity fell below 50% 2410 | -10/Mines | Discovered new exit (range 10) 2999 | -10/Mines | Deemed a non-threat by the Exiles lab entrance 2999 | -10/Mines | Discovered new exit (range 5) 3039 | -10/Mines | Discovered new exit (range 7) 3047 | -10/Mines | Entered Subcaves 3095 | -10/Subcaves | Shifting Twisted Machinery released Battle Cannon 3098 | -10/Subcaves | Shifting Twisted Machinery released Mak. Power Source 3180 | -10/Subcaves | Core integrity fell below 20% 3333 | -10/Subcaves | Visited 4L-MR0's lab 3362 | -10/Subcaves | Found Power Bank 3721 | -10/Subcaves | A swath of the cavern ceiling suddenly collapsed 3763 | -10/Subcaves | Build established: Subdweller-Mutant 4800 | -10/Subcaves | Identified exit to Recycling 4902 | -10/Subcaves | Entered Recycling 5070 | -9/Recycling | Scanned before Scraplab entrance 5207 | -9/Recycling | Entered Scraplab 5220 | -9/Recycling | Discovered new exit (range 2) 5222 | -9/Recycling | Entered Scraptown 5467 | -9/Scraptown | Heard Great Nut preacher, LISTEN AND RECITE! 5538 | -9/Scraptown | Scanned Subdweller tech in exchange for log data 5541 | -9/Scraptown | Learned Research interactive machine intel 5542 | -9/Scraptown | Learned Research trap positions 5570 | -9/Scraptown | Discovered new exit (range 3) 5736 | -9/Scraptown | Visited CPS Storage 5992 | -9/Scraptown | Visited Cave Peace 6058 | -9/Scraptown | Visited TADAMA 6109 | -9/Scraptown | Visited Shadow of the Wyrm 6142 | -9/Scraptown | Visited Assassins FH 6171 | -9/Scraptown | Visited Cyclists 6222 | -9/Scraptown | Visited Symbiants 6266 | -9/Scraptown | Visited UFD Registry 6266 | -9/Scraptown | Registered with UFD as "Toolmod" 6365 | -9/Scraptown | Visited Botcube Research 6408 | -9/Scraptown | Visited Observation Area 6488 | -9/Scraptown | Visited Scrapoid Research Area 6547 | -9/Scraptown | Visited Scrap Suit Storage 6594 | -9/Scraptown | Visited Junk Cannon Lab 6629 | -9/Scraptown | Visited Science Guys 6680 | -9/Scraptown | Visited Chapter 10 6726 | -9/Scraptown | Visited Abandonware Association 6746 | -9/Scraptown | Learned abandonware demo "ERRANTS.EXE" 6840 | -9/Scraptown | Delivered Scrap Shield to a Scientist 7130 | -9/Scraptown | Build established: Derelict-Mutant 7139 | -9/Scraptown | Found Prototype Special Weapon 7241 | -9/Scraptown | Found Botcube 7311 | -9/Scraptown | Identified Junk Cannon 7549 | -9/Scraptown | Entered Cyclist Reading Room 8589 | -9/Scraptown | Found Scrap Suit 8651 | -9/Scraptown | Build established: Mutant 8829 | -9/Scraptown | Botcube activated 8851 | -9/Scraptown | Botcube completed mutation into legged form, armed with 2 melee weapons. 9248 | -9/Scraptown | Discovered new exit (range 5) 9422 | -9/Scraptown | Met Optimus 9422 | -9/Scraptown | Accepted into 0bPrime 9502 | -9/Scraptown | Entered Factory 9502 | -6/Factory | Accompanied by 1 ally 9502 | -6/Factory | Evolved 8 slots: Propulsion x2, Utility x5, Weapon x1 9503 | -6/Factory | Identified exit to Lower Caves 9882 | -6/Factory | Build established: Skirmisher 10036 | -6/Factory | Loaded intel: 8 recycling unit locations 10310 | -6/Factory | Cargo convoy interrupted 10607 | -6/Factory | Discovered new exit (range 14) 10725 | -6/Factory | Found PL-3XN's Ring of Power 10830 | -6/Factory | Learned location of Protoforge (-2) 11170 | -6/Factory | Garrison activated, responded to threat 11186 | -6/Factory | Build established: Tank 11187 | -6/Factory | Found Prototype Launcher 11187 | -6/Factory | Identified Rocket Array 11466 | -6/Factory | Lost 9 parts (3n3u3w) 11519 | -6/Factory | Lost 6 parts (1p4n1w) 11593 | -6/Factory | Discovered new exit (range 20) 11596 | -6/Factory | Core integrity fell below 50% 11603 | -6/Factory | Entered Extension 11679 | -6/Extension | Core integrity fell below 20% 11716 | -6/Extension | Lost 8 parts (2n3u3w) 11722 | -6/Extension | Rescued a captive Derelict 11722 | -6/Extension | Rescued a captive Derelict 11735 | -6/Extension | Destroyed by G-50 Soldier with Heavy Laser Last Messages --------------- 11662_ Critical hit (Destroy). 11662_ Arm. Leg destroyed. 11664_ S-27 Virus destroyed. 11664_ Enh. Optical Array destroyed. 11664_ Hvy. Plasma Cannon destroyed. 11667_ Acquired Autogun. 11668_ U-05 Engineer builds a Door. 11668_ Destroyed Lgt. Nuclear Core. 11673_ Seismic Detector destroyed. 11674_ S-27 Virus destroyed. 11676_ Adv. Terrain Scanner destroyed. 11676_ U-05 Engineer builds a Wall. 11685_ Autogun destroyed. 11687_ Acquired 57 matter. 11721_ Connecting with Door Terminal... 11721_ Current location identified: Extension >>Open(Door) Sealed Heavy Doors opened. 11722_ LZ-M36(l): "Free at last!" 11722_ B6-660(g): "Free at last!" Map ----- +----------------------------------------------------+ | | | | | | | | | | | | | | | | | | | | | | | | | ####?????????????????????????????????????????????? | | ?#???????????????????????????????????????????????? | | ???###???????????????????????????????????????????? | | ##???#???????????????????????????????????????????? | | ??###????????????????????????????????????????????? | | ?#??##???????????????????????????????????????????? | | ?##??????????????????########????????????????????? | | #?#??##??????????????# #????????????????????? | | #####????####????????# gbb #????????????????????? | | ?#???????# #????????# #????????????????????? | | ?####???## ##???????# /g/g #????????????????????? | | ?#?##???? T#???????# / +????????????????????? | | ########### ##????????? ?????????????????????? | | ############@### #??????????? | | #??????????? | | #??????????? | | #??????????? | | #??????????? | | ############################### #??????????? | | ##?????????????????????????????? ???????????? | | ????????????????????????????????? #??????????? | | ??????????????????????????????????u ???????????? | | ??????????????????????????????????? ???????????? | | ???????????????????????????????????? ????????????? | | ?????????????????????????????????????????????????? | | ?????????????????????????????????????????????????? | | ?????????????????????????????????????????????????? | | ?????????????????????????????????????????????????? | | ?????????????????????????????????????????????????? | | ?????????????????????????????????????????????????? | | ?????????????????????????????????????????????????? | | ?????????????????????????????????????????????????? | | ?????????????????????????????????????????????????? | | ?????????????????????????????????????????????????? | | ?????????????????????????????????????????????????? | | ?????????????????????????????????????????????????? | | ?????????????????????????????????????????????????? | | ?????????????????????????????????????????????????? | +----------------------------------------------------+ Best States ------------- Heat Dissipation 56 Coolant Potential 120 Energy Generation 18 Energy Capacity 900 Matter Stores 300 Matter Capacity 300 Sight Range 22 Terrain Scan Range 20 Terrain Scan Density 210 Armor Coverage 900 Evasion (%) 50 Targeting Accuracy 5 Recoil Reduction 3 Offensive Hacking 12 Item Schematics ----------------- None Robot Schematics ------------------ None Fabricated ------------ Nothing Repaired ---------- Nothing Studied --------- None Alien Tech Used ----------------- None Achievements -------------- None Challenges ------------ None Game ------ Seed AuthchipContainmentAirjet Manual? 0 Play Time 01:28:37 Cumulative 66.9 hours Start 2025.12.31 @ 07:20:43 End 2026.01.01 @ 06:45:46 Sessions 3 Manual Loads 0 Difficulty Rogue Special Mode None Game No. 31 Rogue 31 Adventurer 0 Explorer 0 Win Type - Total 0 Types 0/0/0/0/0/0/0/0/0/0 Lore% 51 Gallery% 55 Achievement% 50 Wizard Run 0 Options --------- Layout 0 ASCII 0 Keyboard 0 Movement Mouse Keybinds 0 Fullscreen 1 Font 24/Smallcaps Map View 183x50 Zoom Use 0% Tactical HUD 1 Map Filters NONE Filters NONE Steam 1 RUN: c3087437-9f0e-4133-b9ac-3903460bf0c2